[Event "Bundesturnier Hauptturnier 1 2024"]
[Site "Olten"]
[Date "2024.05.09"]
[Round "1.8"]
[White "Sutter, Oliver"]
[Black "Senn, Roland"]
[Result "1-0"]
[ECO "E00"]
[WhiteElo "2304"]
[BlackElo "1963"]
[Annotator "RC"]
[PlyCount "111"]
[EventDate "2024.05.09"]
[EventType "tourn"]
[EventCountry "SUI"]
[SourceTitle "playchess.com"]
[Source "ChessBase"]
[SourceQuality "1"]
[TimeControl "5400+30"]

1. d4 {[%emt 0:00:03]} Nf6 {[%emt 0:00:04]} 2. c4 {[%emt 0:00:05]} e6 {[%emt 0:00:04]} 3. g3 {[%emt 0:00:32]} Bb4+ {[%emt 0:00:11]} 4. Bd2 {[%emt 0:00:21]} Qe7 {[%emt 0:00:09]} 5. Bg2 {[%emt 0:00:12]} Nc6 {[%emt 0:02:21]} 6. e3 {[%emt 0:01:12]} Bxd2+ {[%emt 0:02:25]} 7. Qxd2 {[%emt 0:01:29]} O-O {[%emt 0:01:09]} 8. Nc3 {[%emt 0:00:32]} e5 {[%emt 0:03:02]} 9. d5 {[%emt 0:01:51]} Na5 {[%emt 0:09:55]} 10. b3 {[%emt 0:01:06]} d6 {[%emt 0:00:44]} 11. Nge2 {[%emt 0:04:12]} b6 {[%emt 0:05:35]} 12. O-O {[%emt 0:06:52]} Nh5 {[%emt 0:06:53]} 13. Rae1 {[%emt 0:09:02]} f5 {[%emt 0:09:45]} 14. f4 {[%emt 0:00:44]} Nf6 {[%emt 0:17:59]} 15. h3 {[%emt 0:08:55]} Bd7 {[%emt 0:02:26]} 16. Kh2 {[%emt 0:07:09]} e4 {[%emt 0:03:21]} 17. Nd4 {[%emt 0:01:58]} Nb7 {[%emt 0:01:09]} 18. b4 {[%emt 0:01:18]} Qf7 {[%emt 0:02:38]} 19. a3 {[%emt 0:09:06]} a6 {[%emt 0:00:24]} 20. Rc1 {[%emt 0:07:31]} Kh8 {[%emt 0:02:14]} 21. Qe2 {[%emt 0:07:25]} Qh5 {[%emt 0:05:23]} 22. Qxh5 {[%emt 0:00:50]} Nxh5 {[%emt 0:00:02]} 23. Nxf5 {[%emt 0:07:57]} Bxf5 {[%emt 0:06:46]} 24. g4 {[%emt 0:00:03]} g6 {[%emt 0:03:16]} 25. gxh5 {[%emt 0:01:07]} Rae8 {[%emt 0:01:48]} 26. hxg6 {[%emt 0:01:44]} hxg6 {[%emt 0:00:02]} 27. Kg3 {[%emt 0:02:01]} Re7 {[%emt 0:00:41]} 28. Rh1 {[%emt 0:01:45]} Kg7 {[%emt 0:00:20]} 29. h4 {[%emt 0:00:53]} Rh8 {[%emt 0:01:43]} 30. Ne2 {[%emt 0:02:20]} Kf6 {[%emt 0:01:15]} 31. Nd4 {[%emt 0:00:25]} Rd7 {[%emt 0:01:27]} 32. Bf1 {[%emt 0:02:27]} a5 {[%emt 0:00:41]} 33. Be2 {[%emt 0:00:50]} Rdd8 {[%emt 0:01:23]} 34. Nb5 {[%emt 0:03:12]} Rd7 {[%emt 0:00:37]} 35. Bd1 {[%emt 0:01:41]} Re7 {[%emt 0:00:17]} 36. Nd4 {[%emt 0:00:34]} Bd7 {[%emt 0:00:58]} 37. Bb3 {[%emt 0:01:56]} Reh7 {[%emt 0:02:33]} 38. Bc2 {[%emt 0:01:01]} Re7 {[%emt 0:00:30]} 39. Ne2 {[%emt 0:01:10]} Bf5 {[%emt 0:03:41]} 40. Ba4 {[%emt 0:00:46]} Bd7 {[%emt 0:02:06]} 41. Bxd7 {[%emt 0:00:32]} Rxd7 {[%emt 0:00:02]} 42. Nc3 {[%emt 0:01:30]} Kf5 {[%emt 0:00:15]} 43. Rcg1 {[%emt 0:01:13]} Rdh7 {[%emt 0:01:19]} 44. Kf2 {[%emt 0:02:15]} Rxh4 {[%emt 0:00:12]} 45. Rg5+ {[%emt 0:00:16]} Kf6 {[%emt 0:00:07]} 46. Nxe4+ {[%emt 0:00:05]} Kf7 {[%emt 0:00:38]} 47. Rxh4 {[%emt 0:00:19]} Rxh4 {[%emt 0:00:02]} 48. Rg2 {[%emt 0:01:17]} Rh1 {[%emt 0:00:14]} 49. Ng5+ {[%emt 0:01:22]} Kf6 {[%emt 0:00:35]} 50. e4 {[%emt 0:00:55]} Ra1 {[%emt 0:00:30]} 51. Rh2 {[%emt 0:00:19]} Ra2+ {[%emt 0:00:08]} 52. Kg3 {[%emt 0:00:31]} Rxa3+ {[%emt 0:00:24]} 53. Kg4 {[%emt 0:00:02]} axb4 {[%emt 0:01:00]} 54. Rh7 {[%emt 0:00:16]} Nd8 {[%emt 0:00:11]} 55. e5+ {[%emt 0:00:28]} dxe5 {[%emt 0:00:11]} 56. Ne4# {[%emt 0:00:02]} 1-0

[Event "Bundesturnier Hauptturnier 1 2024"]
[Site "Olten"]
[Date "2024.05.09"]
[Round "1.9"]
[White "Thorsteinsdottir, Hallgerdur"]
[Black "Toktomushev, Teimur"]
[Result "0-1"]
[ECO "B40"]
[WhiteElo "1947"]
[BlackElo "2295"]
[Annotator "RC"]
[PlyCount "122"]
[EventDate "2024.05.09"]
[EventType "tourn"]
[EventCountry "SUI"]
[SourceTitle "playchess.com"]
[Source "ChessBase"]
[SourceQuality "1"]
[TimeControl "5400+30"]

1. e4 {[%emt 0:00:03]} c5 {[%emt 0:00:16]} 2. Nf3 {[%emt 0:00:11]} e6 {[%emt 0:00:09]} 3. g3 {[%emt 0:00:30]} d5 {[%emt 0:00:08]} 4. exd5 {[%emt 0:00:11]} exd5 {[%emt 0:00:10]} 5. d4 {[%emt 0:00:14]} cxd4 {[%emt 0:09:42]} 6. Nxd4 {[%emt 0:01:42]} Nc6 {[%emt 0:00:51]} 7. Bg2 {[%emt 0:04:28]} Bc5 {[%emt 0:10:19]} 8. Nb3 {[%emt 0:01:31]} Qe7+ {[%emt 0:09:13]} 9. Qe2 {[%emt 0:08:28]} Qxe2+ {[%emt 0:04:47]} 10. Kxe2 {[%emt 0:00:06]} Bb6 {[%emt 0:00:12]} 11. Be3 {[%emt 0:16:32]} Bxe3 {[%emt 0:14:41]} 12. Kxe3 {[%emt 0:01:37]} Nf6 {[%emt 0:00:25]} 13. Nc3 {[%emt 0:05:04]} d4+ {[%emt 0:06:45]} 14. Nxd4 {[%emt 0:02:51]} Ng4+ {[%emt 0:00:14]} 15. Kd3 {[%emt 0:14:36]} Nxf2+ {[%emt 0:05:44]} 16. Ke3 {[%emt 0:08:12]} Ng4+ {[%emt 0:00:33]} 17. Kd3 {[%emt 0:05:00]} Nge5+ {[%emt 0:13:57]} 18. Ke4 {[%emt 0:01:17]} O-O {[%emt 0:04:51]} 19. Nxc6 {[%emt 0:02:59]} Nxc6 {[%emt 0:00:13]} 20. Nd5 {[%emt 0:02:34]} Bd7 {[%emt 0:09:14]} 21. Rhe1 {[%emt 0:03:26]} f6 {[%emt 0:00:43]} 22. Rad1 {[%emt 0:01:37]} Bg4 {[%emt 0:03:55]} 23. Rc1 {[%emt 0:08:15]} Rfe8+ {[%emt 0:03:04]} 24. Kf4 {[%emt 0:00:23]} h5 {[%emt 0:01:07]} 25. h4 {[%emt 0:01:18]} Nd4 {[%emt 0:00:55]} 26. Nc7 {[%emt 0:03:06]} Ne2+ {[%emt 0:00:48]} 27. Rxe2 {[%emt 0:00:18]} Rxe2 {[%emt 0:00:31]} 28. Bd5+ {[%emt 0:00:32]} Kh7 {[%emt 0:00:03]} 29. Nxa8 {[%emt 0:00:12]} Kh6 {[%emt 0:00:54]} 30. Be4 {[%emt 0:02:44]} g5+ {[%emt 0:00:17]} 31. hxg5+ {[%emt 0:00:06]} fxg5+ {[%emt 0:00:02]} 32. Ke5 {[%emt 0:00:07]} Bf3 {[%emt 0:00:02]} 33. Nc7 {[%emt 0:02:34]} Bxe4 {[%emt 0:00:52]} 34. Ne6 {[%emt 0:01:27]} Bc6+ {[%emt 0:01:19]} 35. Kf6 {[%emt 0:00:52]} Rf2+ {[%emt 0:00:25]} 36. Ke5 {[%emt 0:00:20]} Re2+ {[%emt 0:00:27]} 37. Kf6 {[%emt 0:00:08]} Rf2+ {[%emt 0:00:39]} 38. Ke5 {[%emt 0:00:08]} h4 {[%emt 0:00:04]} 39. gxh4 {[%emt 0:01:21]} gxh4 {[%emt 0:00:01]} 40. Nf4 {[%emt 0:00:40]} Rf3 {[%emt 0:01:24]} 41. Rg1 {[%emt 0:02:01]} Re3+ {[%emt 0:00:30]} 42. Kf6 {[%emt 0:01:03]} Rg3 {[%emt 0:00:14]} 43. Rd1 {[%emt 0:00:25]} Rf3 {[%emt 0:00:47]} 44. Ke5 {[%emt 0:00:33]} Kg5 {[%emt 0:00:30]} 45. Ne6+ {[%emt 0:00:40]} Kg4 {[%emt 0:00:26]} 46. Rd4+ {[%emt 0:00:35]} Kg3 {[%emt 0:00:12]} 47. Ng5 {[%emt 0:00:14]} h3 {[%emt 0:00:52]} 48. Nxf3 {[%emt 0:00:40]} Bxf3 {[%emt 0:00:05]} 49. Rd8 {[%emt 0:00:28]} h2 {[%emt 0:00:49]} 50. Rh8 {[%emt 0:00:07]} h1=Q {[%emt 0:00:06]} 51. Rxh1 {[%emt 0:00:06]} Bxh1 {[%emt 0:00:02]} 52. c4 {[%emt 0:01:18]} Kf3 {[%emt 0:00:11]} 53. Kd4 {[%emt 0:00:36]} Kf4 {[%emt 0:01:44]} 54. b4 {[%emt 0:00:23]} Kf5 {[%emt 0:00:08]} 55. c5 {[%emt 0:00:36]} Bc6 {[%emt 0:00:36]} 56. Kc4 {[%emt 0:00:20]} a6 {[%emt 0:00:29]} 57. Kb3 {[%emt 0:00:40]} Ke4 {[%emt 0:00:18]} 58. Kc4 {[%emt 0:00:32]} Bd5+ {[%emt 0:00:06]} 59. Kc3 {[%emt 0:00:21]} Bxa2 {[%emt 0:00:12]} 60. Kb2 {[%emt 0:00:18]} Bc4 {[%emt 0:00:07]} 61. Ka3 {[%emt 0:00:07]} Bb5 {[%emt 0:00:04]} 0-1

[Event "Bundesturnier Hauptturnier 1 2024"]
[Site "Olten"]
[Date "2024.05.09"]
[Round "1.10"]
[White "Loeffler, Markus"]
[Black "Zecirovic, Giacomo"]
[Result "1-0"]
[ECO "B12"]
[WhiteElo "2238"]
[BlackElo "1927"]
[Annotator "RC"]
[PlyCount "75"]
[EventDate "2024.05.09"]
[EventType "tourn"]
[EventCountry "SUI"]
[SourceTitle "playchess.com"]
[Source "ChessBase"]
[SourceQuality "1"]
[TimeControl "5400+30"]

1. e4 {[%emt 0:00:04]} c6 {[%emt 0:00:18]} 2. d4 {[%emt 0:00:03]} d5 {[%emt 0:00:08]} 3. e5 {[%emt 0:00:02]} Bf5 {[%emt 0:00:09]} 4. Nf3 {[%emt 0:00:03]} e6 {[%emt 0:00:25]} 5. Be2 {[%emt 0:00:03]} c5 {[%emt 0:00:16]} 6. Be3 {[%emt 0:01:23]} cxd4 {[%emt 0:02:28]} 7. Nxd4 {[%emt 0:00:45]} Ne7 {[%emt 0:00:52]} 8. c4 {[%emt 0:03:09]} Nbc6 {[%emt 0:00:54]} 9. Nc3 {[%emt 0:01:01]} dxc4 {[%emt 0:10:48]} 10. Ncb5 {[%emt 0:11:39]} Nd5 {[%emt 0:16:45]} 11. O-O {[%emt 0:01:16]} Bd3 {[%emt 0:04:29]} 12. Bxd3 {[%emt 0:05:19]} cxd3 {[%emt 0:00:28]} 13. Rc1 {[%emt 0:25:11]} a6 {[%emt 0:19:49]} 14. Nxc6 {[%emt 0:00:55]} bxc6 {[%emt 0:00:17]} 15. Nd4 {[%emt 0:00:26]} Nxe3 {[%emt 0:15:55]} 16. fxe3 {[%emt 0:00:09]} Qd5 {[%emt 0:00:38]} 17. Rxc6 {[%emt 0:21:08]} Bc5 {[%emt 0:09:32]} 18. Qf3 {[%emt 0:00:21]} Qxf3 {[%emt 0:01:05]} 19. gxf3 {[%emt 0:00:05]} Bxd4 {[%emt 0:05:01]} 20. exd4 {[%emt 0:00:03]} Kd7 {[%emt 0:01:14]} 21. Rc3 {[%emt 0:13:10]} Rab8 {[%emt 0:06:37]} 22. Rf2 {[%emt 0:01:15]} Rb4 {[%emt 0:02:16]} 23. Rxd3 {[%emt 0:00:14]} Rc8 {[%emt 0:00:15]} 24. Kg2 {[%emt 0:02:04]} Rcc4 {[%emt 0:01:09]} 25. Rfd2 {[%emt 0:00:20]} Rb5 {[%emt 0:00:35]} 26. Kf2 {[%emt 0:01:10]} Kc6 {[%emt 0:00:31]} 27. Rc3 {[%emt 0:04:18]} Rxc3 {[%emt 0:00:18]} 28. bxc3 {[%emt 0:00:02]} Kd5 {[%emt 0:00:08]} 29. Ke3 {[%emt 0:01:37]} Kc4 {[%emt 0:00:17]} 30. Ke4 {[%emt 0:03:50]} Kxc3 {[%emt 0:00:58]} 31. Rd3+ {[%emt 0:00:01]} Kc4 {[%emt 0:00:22]} 32. Ra3 {[%emt 0:00:56]} a5 {[%emt 0:00:49]} 33. f4 {[%emt 0:00:03]} Kb4 {[%emt 0:00:41]} 34. Rb3+ {[%emt 0:02:18]} Kc4 {[%emt 0:00:10]} 35. Rxb5 {[%emt 0:00:05]} Kxb5 {[%emt 0:00:02]} 36. d5 {[%emt 0:00:08]} exd5+ {[%emt 0:01:18]} 37. Kxd5 {[%emt 0:00:02]} Kb4 {[%emt 0:00:20]} 38. f5 {[%emt 0:00:18]} 1-0

[Event "Bundesturnier Hauptturnier 1 2024"]
[Site "Olten"]
[Date "2024.05.09"]
[Round "1.11"]
[White "Wegener, Dirk"]
[Black "Gautier, Anand"]
[Result "0-1"]
[ECO "B23"]
[WhiteElo "2371"]
[BlackElo "2274"]
[Annotator "TA"]
[PlyCount "68"]
[EventDate "2024.05.09"]
[EventType "tourn"]
[EventCountry "SUI"]
[SourceTitle "playchess.com"]
[Source "ChessBase"]
[SourceQuality "1"]
[TimeControl "5400+30"]

{[%evp 9,68,-14,0,-2,-9,-18,-21,-27,-17,-43,-19,-18,-9,-37,-32,-33,-42,-79,-31,-20,0,-46,-14,-43,42,43,40,9,0,-57,-56,-50,47,47,41,22,15,-83,-109,-235,-239,-279,-224,-189,-106,-438,-430,-434,-428,-836,-829,-810,-789,-1302,-1273,-1243,-1217,-1692,-1257,-29991,-29992]} 1. e4 {[%emt 0:02:52]} c5 {[%emt 0:00:07]} 2. Nc3 {[%emt 0:00:09]} e6 {[%emt 0:00:14]} 3. f4 {[%emt 0:00:27]} a6 {[%emt 0:00:08]} 4. Nf3 {[%emt 0:00:31]} Nc6 {[%emt 0:00:22]} 5. d3 {[%emt 0:01:11]} b5 {[%emt 0:00:12]} 6. g3 {[%emt 0:00:32]} d5 {[%emt 0:04:30]} 7. e5 {[%emt 0:03:12]} Bb7 {[%emt 0:02:00]} 8. Bg2 {[%emt 0:07:05] The position is equal.} Nh6 {[%emt 0:00:43]} 9. Qe2 {[%emt 0:08:11]} Qc7 {[%emt 0:08:36]} 10. Nd1 {[%emt 0:00:32]} Be7 {[%emt 0:01:13]} 11. Nf2 {[%emt 0:01:58]} Nf5 {[%emt 0:01:29]} 12. c3 {[%emt 0:01:56] Dodges Ncd4} h5 {[%emt 0:01:54]} 13. Be3 {[%emt 0:06:19]} O-O-O {[%emt 0:28:50] Black is more active.} (13... h4 $17 14. g4 Nxe3 15. Qxe3 d4) 14. O-O $15 {[%emt 0:02:46]} Kb8 {[%emt 0:08:58]} 15. Rfc1 {[%emt 0:01:49]} (15. d4 $11 {might be stronger.}) 15... f6 {[%emt 0:06:59]} 16. d4 {[%emt 0:05:49]} c4 {[%emt 0:01:54]} (16... h4 $15 17. g4 Nxe3 18. Qxe3 Bc8) 17. Bd2 $14 {[%emt 0:03:41]} Bc8 {[%emt 0:03:15]} 18. a4 {[%emt 0:02:10]} Na5 {[%emt 0:01:12]} 19. Re1 {[%emt 0:09:29]} (19. axb5 $11 Nb3 20. bxa6) 19... Nb3 {[%emt 0:00:14]} (19... b4 $5) 20. Ra2 {[%emt 0:02:39]} Rde8 {[%emt 0:07:08]} ({Black should play} 20... b4 $15) 21. axb5 {[%emt 0:00:46]} axb5 {[%emt 0:00:00]} 22. Qd1 {[%emt 0:03:37]} Qc6 {[%emt 0:01:30] [#]} 23. Nd3 {[%emt 0:01:24]} Nxd2 $17 {[%emt 0:01:10]} 24. Nxd2 {[%emt 0:05:49]} (24. Qxd2 $17 {might work better.} cxd3 25. Bf1) 24... cxd3 $19 {[%emt 0:00:11]} 25. Nb3 {[%emt 0:02:52]} fxe5 {[%emt 0:07:02]} 26. fxe5 {[%emt 0:00:56]} h4 {[%emt 0:06:36]} 27. Qxd3 {[%emt 0:00:16][%mdl 8192]} (27. g4 $17 {was the crucial defense.} h3 28. Bf1) 27... hxg3 {[%emt 0:00:31]} 28. hxg3 {[%emt 0:01:26]} Qc4 {[%emt 0:02:04]} 29. Qc2 {[%emt 0:02:47]} (29. Qxc4 $142 bxc4 30. Nd2) 29... Bg5 {[%emt 0:01:04] Hoping for ...Be3+.} 30. Bf1 {[%emt 0:02:52]} Ne3 {[%emt 0:01:28]} 31. Qg6 {[%emt 0:09:15]} Qxb3 {[%emt 0:00:54]} 32. Rea1 {[%emt 0:00:13]} Qc2 {[%emt 0:01:24][%csl Gh8][%cal Rc2h2]} 33. Ra8+ {[%emt 0:03:11]} Kc7 {[%emt 0:01:10][%csl Gh8][%cal Rc2h2]} 34. Qxg7+ {[%emt 0:00:42] [#]} Be7 $1 {[%emt 0:00:10] Weighted Error Value: White=1.15/Black=0.48.  Loses game:     	White=1     	---        Mistake:       	White=5     	Black=3      Inaccurate:     	White=5     	Black=1      OK:         	White=3     	Black=7      Best:        	White=1     	Black=3} ({And not} 34... Kc6 35. Rxc8+ Rxc8 36. Ra6#) 0-1

[Event "Bundesturnier Hauptturnier 1 2024"]
[Site "Olten"]
[Date "2024.05.09"]
[Round "1.12"]
[White "Gantner, Matthias"]
[Black "Ernst, Rolf"]
[Result "1-0"]
[ECO "C06"]
[WhiteElo "2237"]
[BlackElo "1939"]
[Annotator "RC"]
[PlyCount "53"]
[EventDate "2024.05.09"]
[EventType "tourn"]
[EventCountry "SUI"]
[SourceTitle "playchess.com"]
[Source "ChessBase"]
[SourceQuality "1"]
[TimeControl "5400+30"]

1. e4 {[%emt 0:00:04]} e6 {[%emt 0:00:27]} 2. d4 {[%emt 0:00:12]} d5 {[%emt 0:00:20]} 3. Nd2 {[%emt 0:00:08]} Nf6 {[%emt 0:00:42]} 4. e5 {[%emt 0:00:08]} Nfd7 {[%emt 0:00:15]} 5. Bd3 {[%emt 0:00:05]} c5 {[%emt 0:01:46]} 6. c3 {[%emt 0:00:10]} Nc6 {[%emt 0:00:24]} 7. Ne2 {[%emt 0:00:13]} Qb6 {[%emt 0:02:09]} 8. Nf3 {[%emt 0:05:01]} Be7 {[%emt 0:02:13]} 9. O-O {[%emt 0:01:15]} h6 {[%emt 0:01:14]} 10. a3 {[%emt 0:06:36]} a5 {[%emt 0:00:56]} 11. b3 {[%emt 0:01:56]} Qa7 {[%emt 0:06:26]} 12. Be3 {[%emt 0:09:24]} b6 {[%emt 0:02:43]} 13. Bb5 {[%emt 0:06:15]} Ncb8 {[%emt 0:04:23]} 14. c4 {[%emt 0:02:40]} Bb7 {[%emt 0:00:46]} 15. cxd5 {[%emt 0:06:31]} Bxd5 {[%emt 0:05:40]} 16. Nc3 {[%emt 0:00:19]} Bc6 {[%emt 0:08:31]} 17. d5 {[%emt 0:01:41]} exd5 {[%emt 0:17:35]} 18. Bxc6 {[%emt 0:00:08]} Nxc6 {[%emt 0:00:11]} 19. Qxd5 {[%emt 0:00:10]} Qb7 {[%emt 0:03:21]} 20. e6 {[%emt 0:03:23]} Nf6 {[%emt 0:02:57]} 21. exf7+ {[%emt 0:00:18]} Kf8 {[%emt 0:00:38]} 22. Qc4 {[%emt 0:09:33]} g5 {[%emt 0:07:08]} 23. Rad1 {[%emt 0:00:00]} Kg7 {[%emt 0:18:56]} 24. Rfe1 {[%emt 0:03:52]} Nd8 {[%emt 0:03:41]} 25. Ne5 {[%emt 0:01:11]} Nc6 {[%emt 0:01:24]} 26. Nxc6 {[%emt 0:05:28]} Qxc6 {[%emt 0:00:05]} 27. Bxg5 {[%emt 0:04:29]} 1-0

[Event "Bundesturnier Hauptturnier 1 2024"]
[Site "Olten"]
[Date "2024.05.09"]
[Round "2.1"]
[White "Bauer, Christian"]
[Black "Retti, Ivan"]
[Result "1-0"]
[ECO "A46"]
[WhiteElo "2576"]
[BlackElo "2076"]
[Annotator "ChessBase"]
[PlyCount "113"]
[EventDate "2024.05.09"]
[EventType "tourn"]
[EventCountry "SUI"]
[SourceTitle "playchess.com"]
[Source "ChessBase"]
[SourceQuality "1"]
[TimeControl "5400+30"]

1. d4 {[%emt 0:04:04]} Nf6 {[%emt 0:00:11]} 2. Nf3 {[%emt 0:00:10]} b5 {[%emt 0:00:23]} 3. Bg5 {[%emt 0:00:29]} Bb7 {[%emt 0:04:29]} 4. Nbd2 {[%emt 0:02:29]} d5 {[%emt 0:00:45]} 5. e3 {[%emt 0:01:26]} a6 {[%emt 0:00:08]} 6. a4 {[%emt 0:02:49]} b4 {[%emt 0:00:19]} 7. c3 {[%emt 0:01:05]} e6 {[%emt 0:04:35]} 8. Qb3 {[%emt 0:08:33]} a5 {[%emt 0:01:13]} 9. Rc1 {[%emt 0:04:35]} Nbd7 {[%emt 0:02:45]} 10. cxb4 {[%emt 0:01:36]} Bxb4 {[%emt 0:00:45]} 11. Bb5 {[%emt 0:00:35]} O-O {[%emt 0:03:27]} 12. O-O {[%emt 0:04:59]} Ba6 {[%emt 0:16:12]} 13. Bxa6 {[%emt 0:12:17]} Rxa6 {[%emt 0:00:11]} 14. Qd3 {[%emt 0:00:02]} Rb6 {[%emt 0:04:06]} 15. Nb3 {[%emt 0:00:11]} Qb8 {[%emt 0:09:58]} 16. Bxf6 {[%emt 0:05:37]} Nxf6 {[%emt 0:04:29]} 17. Ne5 {[%emt 0:00:51]} Qb7 {[%emt 0:01:18]} 18. Rc2 {[%emt 0:04:11]} Ra8 {[%emt 0:03:02]} 19. Rfc1 {[%emt 0:00:59]} Bd6 {[%emt 0:00:30]} 20. Nc5 {[%emt 0:00:29]} Bxc5 {[%emt 0:00:51]} 21. Rxc5 {[%emt 0:00:12]} Ne8 {[%emt 0:01:08]} 22. Nc6 {[%emt 0:13:14]} Rxb2 {[%emt 0:03:04]} 23. h3 {[%emt 0:00:51]} Qb6 {[%emt 0:04:11]} 24. e4 {[%emt 0:01:19]} Nf6 {[%emt 0:04:36]} 25. e5 {[%emt 0:06:34]} Ne4 {[%emt 0:02:45]} 26. R5c2 {[%emt 0:06:27]} g6 {[%emt 0:06:49]} 27. f3 {[%emt 0:09:21]} Ng3 {[%emt 0:04:19]} 28. Kh2 {[%emt 0:00:55]} Nf5 {[%emt 0:00:16]} 29. Qc3 {[%emt 0:05:40]} Rb3 {[%emt 0:07:54]} 30. Qd2 {[%emt 0:00:28]} h6 {[%emt 0:00:04]} 31. Rc3 {[%emt 0:01:12]} Rb2 {[%emt 0:00:49]} 32. Qf4 {[%emt 0:02:01]} g5 {[%emt 0:03:10]} 33. Qg4 {[%emt 0:00:03]} Nh4 {[%emt 0:00:06]} 34. Rg1 {[%emt 0:00:45]} Rf2 {[%emt 0:02:37]} 35. Kh1 {[%emt 0:00:55]} Qb2 {[%emt 0:01:34]} 36. Ne7+ {[%emt 0:00:17]} Kf8 {[%emt 0:03:31]} 37. Rxc7 {[%emt 0:00:13]} Qb6 {[%emt 0:00:02]} 38. Rc8+ {[%emt 0:00:52]} Rxc8 {[%emt 0:00:05]} 39. Nxc8 {[%emt 0:00:01]} Qb2 {[%emt 0:01:32]} 40. Nd6 {[%emt 0:00:16]} Ng6 {[%emt 0:00:57]} 41. Qh5 {[%emt 0:00:36]} Kg7 {[%emt 0:00:22]} 42. Ne8+ {[%emt 0:00:05]} Kf8 {[%emt 0:00:03]} 43. Nf6 {[%emt 0:00:35]} Qxd4 {[%emt 0:01:08]} 44. Qxh6+ {[%emt 0:00:03]} Ke7 {[%emt 0:00:08]} 45. Ng4 {[%emt 0:00:43]} Ra2 {[%emt 0:01:23]} 46. Qxg5+ {[%emt 0:00:06]} Kd7 {[%emt 0:00:09]} 47. Rc1 {[%emt 0:01:39]} Ra1 {[%emt 0:00:54]} 48. Nf6+ {[%emt 0:00:35]} Kd8 {[%emt 0:00:10]} 49. Nxd5+ {[%emt 0:00:29]} Ke8 {[%emt 0:00:06]} 50. Nf6+ {[%emt 0:00:39]} Kd8 {[%emt 0:00:09]} 51. Ng4+ {[%emt 0:00:46]} Kd7 {[%emt 0:00:10]} 52. Kh2 {[%emt 0:00:37]} Rxc1 {[%emt 0:00:47]} 53. Qxc1 {[%emt 0:00:01]} Nxe5 {[%emt 0:00:08]} 54. Nf6+ {[%emt 0:00:31]} Ke7 {[%emt 0:00:53]} 55. Ne4 {[%emt 0:00:03]} f5 {[%emt 0:01:30]} 56. Qc5+ {[%emt 0:00:33]} Qxc5 {[%emt 0:00:07]} 57. Nxc5 {[%emt 0:00:00]} 1-0

[Event "Bundesturnier Hauptturnier 1 2024"]
[Site "Olten"]
[Date "2024.05.09"]
[Round "2.2"]
[White "Stijve, Niels"]
[Black "Baenziger, Fabian"]
[Result "0-1"]
[ECO "B32"]
[WhiteElo "2139"]
[BlackElo "2415"]
[Annotator "ChessBase"]
[PlyCount "126"]
[EventDate "2024.05.09"]
[EventType "tourn"]
[EventCountry "SUI"]
[SourceTitle "playchess.com"]
[Source "ChessBase"]
[SourceQuality "1"]
[TimeControl "5400+30"]

1. e4 {[%emt 0:10:56]} c5 {[%emt 0:00:12]} 2. Nf3 {[%emt 0:00:08]} Nc6 {[%emt 0:00:18]} 3. d4 {[%emt 0:00:14]} cxd4 {[%emt 0:00:06]} 4. Nxd4 {[%emt 0:00:04]} e5 {[%emt 0:00:37]} 5. Nb5 {[%emt 0:01:08]} d6 {[%emt 0:00:15]} 6. c4 {[%emt 0:03:20]} Be6 {[%emt 0:01:55]} 7. N1c3 {[%emt 0:00:34]} a6 {[%emt 0:00:21]} 8. Na3 {[%emt 0:00:06]} Rc8 {[%emt 0:00:09]} 9. Nd5 {[%emt 0:06:02]} Be7 {[%emt 0:06:39]} 10. Qb3 {[%emt 0:10:25]} Rb8 {[%emt 0:09:11]} 11. Be3 {[%emt 0:07:23]} Nf6 {[%emt 0:00:56]} 12. Bb6 {[%emt 0:02:06]} Qd7 {[%emt 0:00:08]} 13. Nc7+ {[%emt 0:03:34]} Kf8 {[%emt 0:00:07]} 14. Nxe6+ {[%emt 0:19:28]} fxe6 {[%emt 0:01:06]} 15. Bd3 {[%emt 0:00:28]} Bd8 {[%emt 0:02:25]} 16. Nc2 {[%emt 0:07:08]} Bxb6 {[%emt 0:13:32]} 17. Qxb6 {[%emt 0:01:42]} Qd8 {[%emt 0:00:04]} 18. Qxd8+ {[%emt 0:12:31]} Rxd8 {[%emt 0:00:08]} 19. b4 {[%emt 0:01:34]} Ke7 {[%emt 0:02:48]} 20. a3 {[%emt 0:04:05]} Rhf8 {[%emt 0:08:45]} 21. Ne3 {[%emt 0:02:25]} a5 {[%emt 0:05:12]} 22. bxa5 {[%emt 0:03:34]} Nd7 {[%emt 0:01:56]} 23. f3 {[%emt 0:01:02]} Nc5 {[%emt 0:01:09]} 24. Be2 {[%emt 0:01:22]} Nd4 {[%emt 0:06:31]} 25. Kd1 {[%emt 0:01:04]} Ra8 {[%emt 0:00:11]} 26. Nc2 {[%emt 0:00:33]} Ndb3 {[%emt 0:00:31]} 27. Rb1 {[%emt 0:00:32]} Rxa5 {[%emt 0:00:08]} 28. Re1 {[%emt 0:00:29]} Nd4 {[%emt 0:02:46]} 29. Bf1 {[%emt 0:00:29]} Nxc2 {[%emt 0:01:35]} 30. Kxc2 {[%emt 0:00:01]} Rxa3 {[%emt 0:00:08]} 31. Ra1 {[%emt 0:00:47]} Rfa8 {[%emt 0:00:12]} 32. Kb2 {[%emt 0:00:39]} R3a6 {[%emt 0:05:31]} 33. Reb1 {[%emt 0:00:34]} Kd7 {[%emt 0:00:31]} 34. Rxa6 {[%emt 0:00:31]} bxa6 {[%emt 0:06:18]} 35. Ka3 {[%emt 0:00:26]} Kc7 {[%emt 0:00:06]} 36. Be2 {[%emt 0:00:31]} Rf8 {[%emt 0:00:18]} 37. Bd1 {[%emt 0:00:31]} Rf6 {[%emt 0:01:19]} 38. Rb2 {[%emt 0:00:30]} Rh6 {[%emt 0:00:34]} 39. g3 {[%emt 0:00:32]} g5 {[%emt 0:04:06]} 40. Rf2 {[%emt 0:00:27]} Rf6 {[%emt 0:00:06]} 41. Rg2 {[%emt 0:00:34]} h6 {[%emt 0:01:51]} 42. h4 {[%emt 0:00:29]} Rf7 {[%emt 0:06:35]} 43. hxg5 {[%emt 0:00:20]} hxg5 {[%emt 0:00:04]} 44. Rh2 {[%emt 0:00:18]} Kb6 {[%emt 0:00:23]} 45. Rb2+ {[%emt 0:00:48]} Kc6 {[%emt 0:01:19]} 46. Rb8 {[%emt 0:00:30]} Rb7 {[%emt 0:06:07]} 47. Rxb7 {[%emt 0:00:33]} Kxb7 {[%emt 0:01:25]} 48. Kb4 {[%emt 0:00:28]} Kb6 {[%emt 0:00:09]} 49. Be2 {[%emt 0:00:27]} a5+ {[%emt 0:01:42]} 50. Kc3 {[%emt 0:00:02]} Nb7 {[%emt 0:00:25]} 51. Bd1 {[%emt 0:00:19]} Nc5 {[%emt 0:00:12]} 52. Be2 {[%emt 0:00:04]} Nd7 {[%emt 0:00:32]} 53. Bf1 {[%emt 0:01:16]} Kc5 {[%emt 0:02:07]} 54. Bh3 {[%emt 0:00:21]} Nb6 {[%emt 0:00:03]} 55. Bxe6 {[%emt 0:01:01]} a4 {[%emt 0:00:03]} 56. Bf7 {[%emt 0:00:30]} a3 {[%emt 0:00:34]} 57. Kb3 {[%emt 0:00:32]} Nxc4 {[%emt 0:01:34]} 58. Bh5 {[%emt 0:00:31]} Kd4 {[%emt 0:00:16]} 59. Bg4 {[%emt 0:00:29]} Ke3 {[%emt 0:00:27]} 60. Be6 {[%emt 0:00:31]} Nd2+ {[%emt 0:00:31]} 61. Kxa3 {[%emt 0:00:20]} Kxf3 {[%emt 0:00:09]} 62. Kb4 {[%emt 0:00:32]} Kxg3 {[%emt 0:00:13]} 63. Bf5 {[%emt 0:00:21]} Kf4 {[%emt 0:00:05]} 0-1